[Event "Titled Tuesday Blitz February 14 Late 2023"]
[White "Rose, Felix"]
[Black "Rodrigues, Tiago Pereira"]
[WhiteFideId "5105722"]
[BlackFideId "2101203"]
[WhiteElo "2091"]
[BlackElo "2155"]
[Result "0-1"]
[Round "05"]
[TimeControl "180+2"]
[Date "2023.02.14"]
[WhiteClock "0:00:21"]
[BlackClock "0:00:08"]

1. e4 {[%clk 0:02:59]}  c5 {[%clk 0:03:00]} 2. Nf3 {[%clk 0:02:59]}  a6 {[%clk 0:03:00]} 3. Nc3 {[%clk 0:02:58]}  d6 {[%clk 0:03:01]} 4. d4 {[%clk 0:02:58]}  cxd4 {[%clk 0:03:02]} 5. Nxd4 {[%clk 0:02:59]}  Nf6 {[%clk 0:03:02]} 6. Be3 {[%clk 0:02:59]}  g6 {[%clk 0:03:03]} 7. f3 {[%clk 0:02:59]}  h5 {[%clk 0:03:03]} 8. Qd2 {[%clk 0:02:59]}  e5 {[%clk 0:03:04]} 9. Nb3 {[%clk 0:02:57]}  Be6 {[%clk 0:03:04]} 10. O-O-O {[%clk 0:02:57]}  Nbd7 {[%clk 0:03:05]} 11. Kb1 {[%clk 0:02:55]}  Rc8 {[%clk 0:03:05]} 12. h4 {[%clk 0:02:53]}  b5 {[%clk 0:03:05]} 13. Nd5 {[%clk 0:02:49]}  Nxd5 {[%clk 0:03:04]} 14. exd5 {[%clk 0:02:49]}  Bf5 {[%clk 0:03:05]} 15. Bd3 {[%clk 0:02:49]}  Bxd3 {[%clk 0:03:04]} 16. Qxd3 {[%clk 0:02:48]}  Be7 {[%clk 0:03:04]} 17. g3 {[%clk 0:02:46]}  Qc7 {[%clk 0:03:02]} 18. Rc1 {[%clk 0:02:45]}  Qc4 {[%clk 0:03:02]} 19. Qd2 {[%clk 0:02:42]}  Nf6 {[%clk 0:03:01]} 20. Rhd1 {[%clk 0:02:33]}  O-O {[%clk 0:03:01]} 21. Na5 {[%clk 0:02:31]}  Qc7 {[%clk 0:02:56]} 22. g4 {[%clk 0:02:16]}  hxg4 {[%clk 0:02:49]} 23. h5 {[%clk 0:02:15]}  Nxh5 {[%clk 0:02:48]} 24. fxg4 {[%clk 0:02:07]}  Nf4 {[%clk 0:02:48]} 25. Bxf4 {[%clk 0:01:56]}  exf4 {[%clk 0:02:49]} 26. Qxf4 {[%clk 0:01:50]}  Rfe8 {[%clk 0:02:29]} 27. Nc6 {[%clk 0:01:48]}  Bf8 {[%clk 0:02:29]} 28. Rh1 {[%clk 0:01:47]}  Bg7 {[%clk 0:02:29]} 29. Qh2 {[%clk 0:01:45]}  Qd7 {[%clk 0:02:29]} 30. Qh7+ {[%clk 0:01:42]}  Kf8 {[%clk 0:02:29]} 31. Rhf1 {[%clk 0:01:43]}  Rxc6 {[%clk 0:01:52]} 32. dxc6 {[%clk 0:01:40]}  Qxg4 {[%clk 0:01:51]} 33. Rxf7+ {[%clk 0:01:06]}  Kxf7 {[%clk 0:01:51]} 34. Rf1+ {[%clk 0:01:06]}  Ke6 {[%clk 0:01:44]} 35. Qxg7 {[%clk 0:01:04]}  Kd5 {[%clk 0:01:43]} 36. c7 {[%clk 0:00:48]}  Kc6 {[%clk 0:01:34]} 37. a3 {[%clk 0:00:35]}  Rc8 {[%clk 0:01:17]} 38. Rf7 {[%clk 0:00:29]}  Qd1+ {[%clk 0:01:14]} 39. Ka2 {[%clk 0:00:28]}  Qxc2 {[%clk 0:01:12]} 40. Ka1 {[%clk 0:00:19]}  Kb7 {[%clk 0:00:57]} 41. Qd4 {[%clk 0:00:17]}  Qc1+ {[%clk 0:00:45]} 42. Ka2 {[%clk 0:00:15]}  Qc4+ {[%clk 0:00:45]} 43. Qxc4 {[%clk 0:00:15]}  bxc4 {[%clk 0:00:46]} 44. Rg7 {[%clk 0:00:15]}  Rxc7 {[%clk 0:00:45]} 45. Rxg6 {[%clk 0:00:16]}  Kc6 {[%clk 0:00:45]} 46. Kb1 {[%clk 0:00:14]}  Rb7 {[%clk 0:00:32]} 47. Kc2 {[%clk 0:00:13]}  Kc5 {[%clk 0:00:31]} 48. Rg5+ {[%clk 0:00:12]}  d5 {[%clk 0:00:31]} 49. Rg6 {[%clk 0:00:13]}  a5 {[%clk 0:00:27]} 50. Ra6 {[%clk 0:00:13]}  Kb5 {[%clk 0:00:15]} 51. Rd6 {[%clk 0:00:12]}  Kc5 {[%clk 0:00:16]} 52. Ra6 {[%clk 0:00:12]}  Rb5 {[%clk 0:00:15]} 53. Rh6 {[%clk 0:00:12]}  Rb6 {[%clk 0:00:13]} 54. Rh5 {[%clk 0:00:12]}  Rf6 {[%clk 0:00:12]} 55. Rh2 {[%clk 0:00:11]}  a4 {[%clk 0:00:11]} 56. Rg2 {[%clk 0:00:11]}  Rf3 {[%clk 0:00:11]} 57. Rh2 {[%clk 0:00:11]}  Rd3 {[%clk 0:00:11]} 58. Rg2 {[%clk 0:00:12]}  Rd4 {[%clk 0:00:11]} 59. Rh2 {[%clk 0:00:12]}  Rg4 {[%clk 0:00:11]} 60. Rf2 {[%clk 0:00:12]}  Re4 {[%clk 0:00:10]} 61. Rg2 {[%clk 0:00:12]}  Kd4 {[%clk 0:00:11]} 62. Rd2+ {[%clk 0:00:12]}  Ke5 {[%clk 0:00:11]} 63. Rh2 {[%clk 0:00:13]}  Kd6 {[%clk 0:00:10]} 64. Rg2 {[%clk 0:00:13]}  Re5 {[%clk 0:00:11]} 65. Rf2 {[%clk 0:00:13]}  d4 {[%clk 0:00:11]} 66. Rf6+ {[%clk 0:00:13]}  Kc5 {[%clk 0:00:10]} 67. Ra6 {[%clk 0:00:13]}  Kb5 {[%clk 0:00:10]} 68. Ra8 {[%clk 0:00:13]}  Re2+ {[%clk 0:00:09]} 69. Kc1 {[%clk 0:00:14]}  Rg2 {[%clk 0:00:07]} 70. Rc8 {[%clk 0:00:14]}  Rh2 {[%clk 0:00:06]} 71. Rc7 {[%clk 0:00:13]}  Rh1+ {[%clk 0:00:06]} 72. Kc2 {[%clk 0:00:13]}  Rh2+ {[%clk 0:00:07]} 73. Kc1 {[%clk 0:00:14]}  Rh5 {[%clk 0:00:08]} 74. Rc8 {[%clk 0:00:14]}  Rc5 {[%clk 0:00:08]} 75. Ra8 {[%clk 0:00:14]}  Rc6 {[%clk 0:00:07]} 76. Rd8 {[%clk 0:00:14]}  Kc5 {[%clk 0:00:07]} 77. Ra8 {[%clk 0:00:14]}  Kb5 {[%clk 0:00:07]} 78. Rd8 {[%clk 0:00:14]}  d3 {[%clk 0:00:07]} 79. Rd5+ {[%clk 0:00:14]}  Rc5 {[%clk 0:00:07]} 80. Rd8 {[%clk 0:00:14]}  Rh5 {[%clk 0:00:07]} 81. Rb8+ {[%clk 0:00:14]}  Kc5 {[%clk 0:00:08]} 82. Rc8+ {[%clk 0:00:14]}  Kd4 {[%clk 0:00:08]} 83. Rd8+ {[%clk 0:00:15]}  Rd5 {[%clk 0:00:08]} 84. Rc8 {[%clk 0:00:15]}  Rc5 {[%clk 0:00:08]} 85. Rd8+ {[%clk 0:00:15]}  Ke3 {[%clk 0:00:08]} 86. Re8+ {[%clk 0:00:16]}  Kf4 {[%clk 0:00:09]} 87. Kd2 {[%clk 0:00:17]}  Re5 {[%clk 0:00:08]} 88. Rf8+ {[%clk 0:00:17]}  Ke4 {[%clk 0:00:08]} 89. Rc8 {[%clk 0:00:17]}  Kd4 {[%clk 0:00:07]} 90. Rd8+ {[%clk 0:00:17]}  Kc5 {[%clk 0:00:08]} 91. Rc8+ {[%clk 0:00:18]}  Kd5 {[%clk 0:00:08]} 92. Rd8+ {[%clk 0:00:18]}  Ke4 {[%clk 0:00:08]} 93. Rc8 {[%clk 0:00:18]}  Kd4 {[%clk 0:00:08]} 94. Rd8+ {[%clk 0:00:18]}  Rd5 {[%clk 0:00:09]} 95. Ra8 {[%clk 0:00:19]}  Rb5 {[%clk 0:00:09]} 96. Rd8+ {[%clk 0:00:19]}  Ke4 {[%clk 0:00:09]} 97. Re8+ {[%clk 0:00:19]}  Kf5 {[%clk 0:00:10]} 98. Kc1 {[%clk 0:00:20]}  Rc5 {[%clk 0:00:10]} 99. Rd8 {[%clk 0:00:20]}  Ke5 {[%clk 0:00:10]} 100. Re8+ {[%clk 0:00:20]}  Kd4 {[%clk 0:00:10]} 101. Rd8+ {[%clk 0:00:21]}  Rd5 {[%clk 0:00:10]} 102. Ra8 {[%clk 0:00:21]}  c3 {[%clk 0:00:08]} 103. Ra5 {[%clk 0:00:21]}  cxb2+ {[%clk 0:00:07]} 104. Kxb2 {[%clk 0:00:21]}  Rxa5 {[%clk 0:00:08]} 0-1


[Site "https://www.chess.com"]

[Event "Titled Tuesday Blitz February 14 Late 2023"]
[White "Davalos Prieto, Abel Justo"]
[Black "Golubev, Mikhail"]
[WhiteFideId "5102766"]
[BlackFideId "14100983"]
[WhiteElo "2029"]
[BlackElo "2461"]
[Result "0-1"]
[Round "05"]
[TimeControl "180+2"]
[Date "2023.02.14"]
[WhiteClock "0:01:48"]
[BlackClock "0:01:21"]

1. c4 {[%clk 0:03:00]}  g6 {[%clk 0:02:57]} 2. Nc3 {[%clk 0:02:59]}  Bg7 {[%clk 0:02:57]} 3. e4 {[%clk 0:02:59]}  e5 {[%clk 0:02:53]} 4. Nf3 {[%clk 0:02:57]}  Nc6 {[%clk 0:02:53]} 5. d3 {[%clk 0:02:54]}  d6 {[%clk 0:02:53]} 6. Be2 {[%clk 0:02:48]}  f5 {[%clk 0:02:44]} 7. O-O {[%clk 0:02:42]}  f4 {[%clk 0:02:37]} 8. a3 {[%clk 0:02:39]}  g5 {[%clk 0:02:33]} 9. b4 {[%clk 0:02:27]}  g4 {[%clk 0:02:28]} 10. Ne1 {[%clk 0:02:26]}  h5 {[%clk 0:02:25]} 11. f3 {[%clk 0:02:20]}  Qh4 {[%clk 0:02:07]} 12. Nc2 {[%clk 0:02:13]}  g3 {[%clk 0:01:57]} 13. h3 {[%clk 0:02:09]}  Bxh3 {[%clk 0:01:57]} 14. gxh3 {[%clk 0:02:08]}  Qxh3 {[%clk 0:01:56]} 15. Rf2 {[%clk 0:02:08]}  gxf2+ {[%clk 0:01:50]} 16. Kxf2 {[%clk 0:02:07]}  Qg3+ {[%clk 0:01:41]} 17. Kf1 {[%clk 0:02:06]}  h4 {[%clk 0:01:26]} 18. Qe1 {[%clk 0:01:57]}  h3 {[%clk 0:01:21]} 19. Qxg3 {[%clk 0:01:54]}  fxg3 {[%clk 0:01:22]} 20. Kg1 {[%clk 0:01:53]}  h2+ {[%clk 0:01:21]} 21. Kh1 {[%clk 0:01:48]}  g2+ {[%clk 0:01:21]} 0-1


[Site "https://www.chess.com"]

[Event "Titled Tuesday Blitz February 14 Late 2023"]
[White "Wang, Alexander J"]
[Black "Rian, Kapriaga"]
[WhiteFideId "30955270"]
[BlackFideId "7103263"]
[WhiteElo "1815"]
[BlackElo "2089"]
[Result "1-0"]
[Round "05"]
[TimeControl "180+2"]
[Date "2023.02.14"]
[WhiteClock "0:00:36"]
[BlackClock "0:00:06"]

1. e4 {[%clk 0:03:00]}  c6 {[%clk 0:02:12]} 2. d4 {[%clk 0:03:00]}  d5 {[%clk 0:02:12]} 3. f3 {[%clk 0:03:00]}  e6 {[%clk 0:02:11]} 4. Nc3 {[%clk 0:02:58]}  Bb4 {[%clk 0:02:10]} 5. Ne2 {[%clk 0:02:47]}  Ne7 {[%clk 0:02:09]} 6. a3 {[%clk 0:02:19]}  Ba5 {[%clk 0:02:08]} 7. g3 {[%clk 0:02:18]}  O-O {[%clk 0:02:07]} 8. Bg2 {[%clk 0:02:08]}  f5 {[%clk 0:02:07]} 9. e5 {[%clk 0:01:56]}  Bc7 {[%clk 0:01:57]} 10. f4 {[%clk 0:01:44]}  b6 {[%clk 0:01:57]} 11. Be3 {[%clk 0:01:43]}  Nd7 {[%clk 0:01:56]} 12. b4 {[%clk 0:01:23]}  a5 {[%clk 0:01:55]} 13. O-O {[%clk 0:01:18]}  Ba6 {[%clk 0:01:54]} 14. h3 {[%clk 0:01:16]}  Bc4 {[%clk 0:01:46]} 15. Rb1 {[%clk 0:01:15]}  axb4 {[%clk 0:01:45]} 16. axb4 {[%clk 0:01:16]}  Ra3 {[%clk 0:01:40]} 17. Qd2 {[%clk 0:01:15]}  Qa8 {[%clk 0:01:37]} 18. Rfc1 {[%clk 0:01:11]}  Qa7 {[%clk 0:01:35]} 19. Bf2 {[%clk 0:01:09]}  Ra8 {[%clk 0:01:34]} 20. Nd1 {[%clk 0:01:09]}  Bxe2 {[%clk 0:01:26]} 21. Qxe2 {[%clk 0:01:08]}  b5 {[%clk 0:01:26]} 22. Qd2 {[%clk 0:01:07]}  Nb6 {[%clk 0:01:25]} 23. Ne3 {[%clk 0:01:06]}  Ra2 {[%clk 0:01:18]} 24. g4 {[%clk 0:01:06]}  Nec8 {[%clk 0:01:15]} 25. gxf5 {[%clk 0:01:05]}  exf5 {[%clk 0:01:14]} 26. Qd3 {[%clk 0:01:04]}  g6 {[%clk 0:01:13]} 27. h4 {[%clk 0:01:01]}  Bd8 {[%clk 0:01:11]} 28. h5 {[%clk 0:01:00]}  Ra3 {[%clk 0:01:10]} 29. Qe2 {[%clk 0:00:58]}  Nc4 {[%clk 0:01:05]} 30. Nxc4 {[%clk 0:00:57]}  bxc4 {[%clk 0:01:05]} 31. hxg6 {[%clk 0:00:57]}  hxg6 {[%clk 0:01:05]} 32. Kh2 {[%clk 0:00:53]}  Qh7+ {[%clk 0:01:02]} 33. Kg1 {[%clk 0:00:53]}  Bh4 {[%clk 0:01:00]} 34. b5 {[%clk 0:00:52]}  cxb5 {[%clk 0:00:23]} 35. Bxd5+ {[%clk 0:00:51]}  Kf8 {[%clk 0:00:20]} 36. Bxa8 {[%clk 0:00:47]}  Rxa8 {[%clk 0:00:19]} 37. d5 {[%clk 0:00:46]}  Bxf2+ {[%clk 0:00:15]} 38. Qxf2 {[%clk 0:00:47]}  Qh5 {[%clk 0:00:14]} 39. d6 {[%clk 0:00:41]}  Qg4+ {[%clk 0:00:14]} 40. Kf1 {[%clk 0:00:41]}  Ra3 {[%clk 0:00:13]} 41. d7 {[%clk 0:00:38]}  Qh3+ {[%clk 0:00:11]} 42. Ke2 {[%clk 0:00:38]}  Qg4+ {[%clk 0:00:10]} 43. Kd2 {[%clk 0:00:36]}  c3+ {[%clk 0:00:09]} 44. Ke1 {[%clk 0:00:36]}  Ra4 {[%clk 0:00:08]} 45. dxc8=Q+ {[%clk 0:00:36]}  Kf7 {[%clk 0:00:08]} 46. Qd7+ {[%clk 0:00:36]}  Kf8 {[%clk 0:00:07]} 47. Qc5+ {[%clk 0:00:35]}  Kg8 {[%clk 0:00:06]} 48. Qcc8# {[%clk 0:00:36]} 1-0


[Site "https://www.chess.com"]

[Event "Titled Tuesday Blitz February 14 Late 2023"]
[White "Skaric, Djuro"]
[Black "Sailer, Mike"]
[WhiteFideId "934569"]
[BlackFideId "2012901"]
[WhiteElo "2334"]
[BlackElo "2109"]
[Result "1-0"]
[Round "05"]
[TimeControl "180+2"]
[Date "2023.02.14"]
[WhiteClock "0:01:36"]
[BlackClock "0:00:08"]

1. g3 {[%clk 0:03:00]}  d5 {[%clk 0:02:52]} 2. Bg2 {[%clk 0:03:01]}  Nf6 {[%clk 0:02:51]} 3. d3 {[%clk 0:03:01]}  Bf5 {[%clk 0:02:47]} 4. Nf3 {[%clk 0:03:01]}  e6 {[%clk 0:02:47]} 5. O-O {[%clk 0:03:01]}  Be7 {[%clk 0:02:46]} 6. Nc3 {[%clk 0:03:01]}  O-O {[%clk 0:02:45]} 7. h3 {[%clk 0:03:02]}  h6 {[%clk 0:02:45]} 8. Ne5 {[%clk 0:03:01]}  Nbd7 {[%clk 0:02:44]} 9. Nxd7 {[%clk 0:03:01]}  Qxd7 {[%clk 0:02:43]} 10. e4 {[%clk 0:03:02]}  Bh7 {[%clk 0:02:43]} 11. f4 {[%clk 0:03:01]}  dxe4 {[%clk 0:02:31]} 12. dxe4 {[%clk 0:03:01]}  Bc5+ {[%clk 0:02:31]} 13. Kh2 {[%clk 0:03:00]}  Qe7 {[%clk 0:02:26]} 14. Qe2 {[%clk 0:02:56]}  Rad8 {[%clk 0:02:25]} 15. a3 {[%clk 0:02:55]}  a6 {[%clk 0:02:22]} 16. g4 {[%clk 0:02:55]}  Bd4 {[%clk 0:02:04]} 17. Nd1 {[%clk 0:02:55]}  c6 {[%clk 0:01:46]} 18. Nf2 {[%clk 0:02:50]}  Bxf2 {[%clk 0:01:39]} 19. Rxf2 {[%clk 0:02:50]}  Rd7 {[%clk 0:01:28]} 20. Bd2 {[%clk 0:02:34]}  Rfd8 {[%clk 0:01:27]} 21. Bc3 {[%clk 0:02:34]}  Ne8 {[%clk 0:01:19]} 22. Rg1 {[%clk 0:02:30]}  Qc5 {[%clk 0:01:10]} 23. Bf3 {[%clk 0:02:26]}  f6 {[%clk 0:00:52]} 24. h4 {[%clk 0:02:24]}  e5 {[%clk 0:00:50]} 25. f5 {[%clk 0:02:23]}  Nc7 {[%clk 0:00:45]} 26. a4 {[%clk 0:02:22]}  b5 {[%clk 0:00:44]} 27. a5 {[%clk 0:02:10]}  b4 {[%clk 0:00:44]} 28. Be1 {[%clk 0:02:07]}  Nb5 {[%clk 0:00:44]} 29. Rfg2 {[%clk 0:02:06]}  Nd4 {[%clk 0:00:43]} 30. Qf2 {[%clk 0:02:05]}  Nxf3+ {[%clk 0:00:41]} 31. Qxf3 {[%clk 0:02:03]}  Qc4 {[%clk 0:00:26]} 32. g5 {[%clk 0:02:02]}  hxg5 {[%clk 0:00:21]} 33. hxg5 {[%clk 0:02:02]}  fxg5 {[%clk 0:00:17]} 34. Rxg5 {[%clk 0:02:01]}  Qxc2+ {[%clk 0:00:09]} 35. R1g2 {[%clk 0:01:59]}  Qc1 {[%clk 0:00:07]} 36. Bxb4 {[%clk 0:01:37]}  Qf4+ {[%clk 0:00:07]} 37. Qxf4 {[%clk 0:01:37]}  exf4 {[%clk 0:00:08]} 38. Bc3 {[%clk 0:01:37]}  Rd3 {[%clk 0:00:07]} 39. Rxg7+ {[%clk 0:01:37]}  Kf8 {[%clk 0:00:08]} 40. Rxh7 {[%clk 0:01:36]} 1-0


[Site "https://www.chess.com"]

[Event "Titled Tuesday Blitz February 14 Late 2023"]
[White "Marcolino, Daniel Mattos"]
[Black "Jimenez Jimenez, Leandro"]
[WhiteFideId "2106841"]
[BlackFideId "6415253"]
[WhiteElo "2006"]
[BlackElo "2146"]
[Result "0-1"]
[Round "05"]
[TimeControl "180+2"]
[Date "2023.02.14"]
[WhiteClock "0:00:38"]
[BlackClock "0:00:09"]

1. d4 {[%clk 0:03:00]}  d5 {[%clk 0:02:57]} 2. Nf3 {[%clk 0:03:01]}  Nf6 {[%clk 0:02:55]} 3. g3 {[%clk 0:03:01]}  e6 {[%clk 0:02:46]} 4. Bg2 {[%clk 0:03:02]}  Be7 {[%clk 0:02:46]} 5. O-O {[%clk 0:03:02]}  O-O {[%clk 0:02:46]} 6. c4 {[%clk 0:03:03]}  Nbd7 {[%clk 0:02:40]} 7. Qc2 {[%clk 0:03:03]}  b6 {[%clk 0:02:40]} 8. Nbd2 {[%clk 0:03:03]}  Bb7 {[%clk 0:02:40]} 9. e4 {[%clk 0:02:31]}  dxe4 {[%clk 0:02:17]} 10. Ng5 {[%clk 0:02:28]}  c5 {[%clk 0:02:16]} 11. dxc5 {[%clk 0:02:15]}  Nxc5 {[%clk 0:02:14]} 12. Ndxe4 {[%clk 0:02:11]}  Ncxe4 {[%clk 0:02:06]} 13. Nxe4 {[%clk 0:02:12]}  Bxe4 {[%clk 0:01:43]} 14. Bxe4 {[%clk 0:02:13]}  Nxe4 {[%clk 0:01:44]} 15. Qxe4 {[%clk 0:02:13]}  Bf6 {[%clk 0:01:45]} 16. Rb1 {[%clk 0:02:08]}  Qe7 {[%clk 0:01:43]} 17. b3 {[%clk 0:02:02]}  Rfd8 {[%clk 0:01:43]} 18. Bf4 {[%clk 0:01:57]}  Qa3 {[%clk 0:01:26]} 19. Qe2 {[%clk 0:01:57]}  Rd4 {[%clk 0:01:16]} 20. Be3 {[%clk 0:01:48]}  Rd7 {[%clk 0:01:14]} 21. Rfd1 {[%clk 0:01:48]}  Rad8 {[%clk 0:01:14]} 22. Rxd7 {[%clk 0:01:06]}  Rxd7 {[%clk 0:01:14]} 23. Rd1 {[%clk 0:01:06]}  Rxd1+ {[%clk 0:01:10]} 24. Qxd1 {[%clk 0:01:07]}  Qxa2 {[%clk 0:01:09]} 25. Qd7 {[%clk 0:01:07]}  Qa3 {[%clk 0:00:46]} 26. Qb7 {[%clk 0:01:06]}  h6 {[%clk 0:00:41]} 27. Qa8+ {[%clk 0:01:02]}  Kh7 {[%clk 0:00:40]} 28. Bxb6 {[%clk 0:01:01]}  Qa1+ {[%clk 0:00:35]} 29. Kg2 {[%clk 0:00:53]}  axb6 {[%clk 0:00:36]} 30. Qb7 {[%clk 0:00:50]}  Bd4 {[%clk 0:00:31]} 31. Qxf7 {[%clk 0:00:48]}  Qb2 {[%clk 0:00:24]} 32. h4 {[%clk 0:00:45]}  Qc2 {[%clk 0:00:15]} 33. h5 {[%clk 0:00:42]}  Qf5 {[%clk 0:00:14]} 34. Qd7 {[%clk 0:00:40]}  Qxf2+ {[%clk 0:00:11]} 35. Kh3 {[%clk 0:00:41]}  Qf5+ {[%clk 0:00:10]} 36. Kg2 {[%clk 0:00:41]}  Bc5 {[%clk 0:00:10]} 37. Qe8 {[%clk 0:00:38]}  e5 {[%clk 0:00:09]} 0-1


[Site "https://www.chess.com"]

[Event "Titled Tuesday Blitz February 14 Late 2023"]
[White "Vargas, Mauricio"]
[Black "Sariego Figueredo, Wilfredo"]
[WhiteFideId "4404572"]
[BlackFideId "3500080"]
[WhiteElo "2035"]
[BlackElo "2318"]
[Result "0-1"]
[Round "05"]
[TimeControl "180+2"]
[Date "2023.02.14"]
[WhiteClock "0:00:42"]
[BlackClock "0:00:49"]

1. e4 {[%clk 0:02:47]}  c5 {[%clk 0:02:57]} 2. Nc3 {[%clk 0:02:17]}  a6 {[%clk 0:02:56]} 3. f4 {[%clk 0:02:09]}  b5 {[%clk 0:02:54]} 4. Nf3 {[%clk 0:02:10]}  Bb7 {[%clk 0:02:53]} 5. d3 {[%clk 0:02:10]}  e6 {[%clk 0:02:48]} 6. g3 {[%clk 0:02:09]}  Nf6 {[%clk 0:02:41]} 7. Bg2 {[%clk 0:01:44]}  d5 {[%clk 0:02:37]} 8. e5 {[%clk 0:01:43]}  Nfd7 {[%clk 0:02:36]} 9. O-O {[%clk 0:01:42]}  Nc6 {[%clk 0:02:30]} 10. Ne2 {[%clk 0:01:42]}  Be7 {[%clk 0:02:29]} 11. c3 {[%clk 0:01:42]}  Rc8 {[%clk 0:02:27]} 12. Qe1 {[%clk 0:01:41]}  Qb6 {[%clk 0:02:21]} 13. Kh1 {[%clk 0:01:40]}  d4 {[%clk 0:02:15]} 14. g4 {[%clk 0:01:31]}  O-O {[%clk 0:02:07]} 15. Ng3 {[%clk 0:01:31]}  Rfd8 {[%clk 0:01:44]} 16. g5 {[%clk 0:01:30]}  Nf8 {[%clk 0:01:41]} 17. Ne4 {[%clk 0:01:30]}  dxc3 {[%clk 0:01:33]} 18. bxc3 {[%clk 0:01:29]}  Rxd3 {[%clk 0:01:30]} 19. Qh4 {[%clk 0:01:27]}  Ng6 {[%clk 0:01:24]} 20. Qh5 {[%clk 0:01:21]}  Rcd8 {[%clk 0:01:18]} 21. Nf6+ {[%clk 0:01:20]}  Bxf6 {[%clk 0:01:16]} 22. gxf6 {[%clk 0:01:20]}  Rd1 {[%clk 0:01:12]} 23. Be3 {[%clk 0:01:14]}  Rxa1 {[%clk 0:01:10]} 24. Rxa1 {[%clk 0:01:12]}  Na5 {[%clk 0:01:08]} 25. Ng5 {[%clk 0:01:09]}  Bxg2+ {[%clk 0:01:05]} 26. Kxg2 {[%clk 0:01:09]}  h6 {[%clk 0:00:59]} 27. fxg7 {[%clk 0:01:03]}  Kxg7 {[%clk 0:00:57]} 28. Ne4 {[%clk 0:00:52]}  Rd3 {[%clk 0:00:51]} 29. Re1 {[%clk 0:00:49]}  Rxe3 {[%clk 0:00:50]} 30. Rxe3 {[%clk 0:00:48]}  Nxf4+ {[%clk 0:00:49]} 31. Kf3 {[%clk 0:00:43]}  Nxh5 {[%clk 0:00:48]} 32. Nf6 {[%clk 0:00:41]}  Nxf6 {[%clk 0:00:48]} 33. exf6+ {[%clk 0:00:42]}  Kxf6 {[%clk 0:00:49]} 0-1


[Site "https://www.chess.com"]

[Event "Titled Tuesday Blitz February 14 Late 2023"]
[White "Sjugirov, Sanan"]
[Black "Bortnyk, Olexandr"]
[WhiteFideId "4189302"]
[BlackFideId "14120828"]
[WhiteElo "2712"]
[BlackElo "2605"]
[Result "0-1"]
[Round "06"]
[TimeControl "180+2"]
[Date "2023.02.14"]
[WhiteClock "0:00:01"]
[BlackClock "0:00:19"]

1. d4 {[%clk 0:03:00]}  d6 {[%clk 0:02:57]} 2. Nf3 {[%clk 0:03:00]}  Nf6 {[%clk 0:02:57]} 3. c4 {[%clk 0:02:59]}  g6 {[%clk 0:02:57]} 4. g3 {[%clk 0:02:54]}  Bg7 {[%clk 0:02:57]} 5. Bg2 {[%clk 0:02:54]}  O-O {[%clk 0:02:58]} 6. Nc3 {[%clk 0:02:54]}  Bf5 {[%clk 0:02:53]} 7. Qb3 {[%clk 0:02:49]}  Nc6 {[%clk 0:02:42]} 8. O-O {[%clk 0:02:01]}  Rb8 {[%clk 0:02:04]} 9. Bf4 {[%clk 0:01:33]}  Ne4 {[%clk 0:02:01]} 10. Be3 {[%clk 0:01:25]}  Nxc3 {[%clk 0:01:53]} 11. Qxc3 {[%clk 0:01:19]}  Be4 {[%clk 0:01:53]} 12. Rfd1 {[%clk 0:01:14]}  b5 {[%clk 0:01:32]} 13. cxb5 {[%clk 0:01:01]}  Rxb5 {[%clk 0:01:32]} 14. Rac1 {[%clk 0:00:59]}  Nb4 {[%clk 0:01:27]} 15. Qc4 {[%clk 0:00:34]}  c6 {[%clk 0:01:19]} 16. a4 {[%clk 0:00:04]}  Bd5 {[%clk 0:01:12]} 17. Qc3 {[%clk 0:00:04]}  Na2 {[%clk 0:01:13]} 18. Qc2 {[%clk 0:00:03]}  Bb3 {[%clk 0:01:04]} 19. Qd2 {[%clk 0:00:03]}  Rb6 {[%clk 0:00:54]} 20. Ra1 {[%clk 0:00:03]}  Bxd1 {[%clk 0:00:54]} 21. Qxd1 {[%clk 0:00:03]}  Nb4 {[%clk 0:00:54]} 22. Rc1 {[%clk 0:00:03]}  Nd5 {[%clk 0:00:53]} 23. Bd2 {[%clk 0:00:03]}  Rxb2 {[%clk 0:00:53]} 24. Rxc6 {[%clk 0:00:03]}  Qd7 {[%clk 0:00:51]} 25. Rc1 {[%clk 0:00:02]}  Rfb8 {[%clk 0:00:50]} 26. Ne1 {[%clk 0:00:02]}  Nb4 {[%clk 0:00:44]} 27. Bc3 {[%clk 0:00:02]}  Ra2 {[%clk 0:00:43]} 28. Rb1 {[%clk 0:00:02]}  Qxa4 {[%clk 0:00:41]} 29. Qc1 {[%clk 0:00:01]}  Rxe2 {[%clk 0:00:39]} 30. Nd3 {[%clk 0:00:02]}  a5 {[%clk 0:00:38]} 31. Nf4 {[%clk 0:00:02]}  Rc2 {[%clk 0:00:36]} 32. Qe1 {[%clk 0:00:02]}  Qa2 {[%clk 0:00:24]} 33. Bxb4 {[%clk 0:00:02]}  axb4 {[%clk 0:00:25]} 34. Nd5 {[%clk 0:00:03]}  Bxd4 {[%clk 0:00:21]} 35. Kh1 {[%clk 0:00:02]}  Rxf2 {[%clk 0:00:20]} 36. Nxe7+ {[%clk 0:00:02]}  Kg7 {[%clk 0:00:20]} 37. Nc6 {[%clk 0:00:01]}  Re8 {[%clk 0:00:19]} 0-1


[Site "https://www.chess.com"]